bitfinex/quotes_BTCUSD_20241226
["timestamp","ask_amount","ask_price","bid_price","bid_amount"]
[1735173745653,0.56347232,99142.0,99141.0,0.001]
[1735173746730,0.173,99141.0,99116.0,8.58e-05]
[1735173746881,0.15,99129.0,99116.0,8.58e-05]
[1735173747091,0.15,99127.0,99116.0,8.58e-05]
[1735173747291,0.15,99126.0,99117.0,0.161425]
[1735173748818,0.25398632,99126.0,99116.0,8.58e-05]
[1735173749086,0.15,99124.0,99116.0,8.58e-05]
[1735173749250,0.15,99122.0,99116.0,8.58e-05]
[1735173749430,0.10398632,99122.0,99116.0,8.58e-05]
[1735173749634,0.15,99121.0,99116.0,8.58e-05]
[1735173750785,0.15,99121.0,99116.0,0.0020858]
[1735173750992,0.161422,99119.0,99116.0,0.0020858]
[1735173751200,0.10398632,99118.0,99116.0,0.0020858]
[1735173751405,0.2296,99130.0,99116.0,0.0020858]
[1735173751606,0.15,99128.0,99116.0,0.0010858]
[1735173751836,0.15,99126.0,99117.0,0.161425]
[1735173752038,0.10398632,99125.0,99117.0,0.161425]
[1735173752280,0.10398632,99125.0,99116.0,0.0010858]
[1735173752452,0.10398632,99125.0,99116.0,0.0030858]
[1735173752677,0.08976927,99129.0,99116.0,0.0010858]
[1735173752856,0.10498632,99128.0,99116.0,0.0010858]
[1735173753070,0.10498632,99128.0,99116.0,8.58e-05]
[1735173753272,0.08976927,99129.0,99123.0,0.161415]
[1735173753468,0.001,99130.0,99123.0,0.161415]
[1735173753668,0.10498632,99130.0,99123.0,0.161415]
[1735173753869,0.10398632,99130.0,99123.0,0.161415]
[1735173754075,0.001,99128.0,99123.0,0.161415]
[1735173754387,0.001,99128.0,99118.0,0.161423]
[1735173754577,0.10398632,99130.0,99118.0,0.161423]
[1735173754938,0.10498632,99130.0,99118.0,0.161423]
[1735173755136,0.001,99128.0,99116.0,8.58e-05]
[1735173755335,0.001,99130.0,99120.0,0.11734109]
[1735173755520,0.001,99130.0,99127.0,0.161408]
[1735173755722,0.002,99130.0,99127.0,0.161408]
[1735173755980,0.002,99130.0,99127.0,0.322816]
[1735173756176,0.001,99130.0,99127.0,0.322816]
[1735173756727,0.001,99130.0,99127.0,0.161408]
[1735173757201,5.203e-05,99133.0,99132.0,0.1614]
[1735173759062,5.203e-05,99133.0,99132.0,0.1654]
[1735173759608,5.203e-05,99133.0,99132.0,0.1674]
[1735173760637,5.203e-05,99133.0,99132.0,0.006]
[1735173760848,0.10403835,99133.0,99132.0,0.006]
[1735173761516,5.203e-05,99133.0,99132.0,0.006]
[1735173761874,5.203e-05,99133.0,99132.0,0.1674]
[1735173762399,5.203e-05,99133.0,99132.0,0.1614]
[1735173763294,5.203e-05,99133.0,99132.0,0.1654]
[1735173763495,5.203e-05,99133.0,99132.0,0.1674]
[1735173764857,0.00022363,99133.0,99132.0,0.1674]
[1735173765258,0.00022363,99133.0,99132.0,0.18741694]
[1735173766018,0.00022363,99133.0,99132.0,0.18341694]
[1735173766240,0.00022363,99133.0,99132.0,0.18641694]
[1735173766674,0.00022363,99133.0,99132.0,0.39040326]
[1735173766882,0.00022363,99133.0,99132.0,0.39140326]
[1735173767246,0.00022363,99133.0,99132.0,0.29140326]
[1735173767566,0.00022363,99133.0,99132.0,0.29040326]
[1735173767772,0.00022363,99133.0,99132.0,0.29340326]
[1735173768036,0.00022363,99133.0,99132.0,0.18941694]
[1735173768244,0.00022363,99133.0,99132.0,0.18441694]
[1735173768622,0.00022363,99133.0,99132.0,0.18841694]
[1735173769310,0.00022363,99133.0,99132.0,0.18141694]
[1735173769505,0.00022363,99133.0,99132.0,0.18341694]
[1735173769722,0.00022363,99133.0,99132.0,0.18641694]
[1735173772259,0.00022363,99133.0,99132.0,0.39040326]
[1735173772458,0.00022363,99133.0,99132.0,0.38840326]
[1735173772934,0.00022363,99133.0,99132.0,0.48740326]
[1735173772935,6.3e-07,99133.0,99132.0,0.48740326]
[1735173773139,6.3e-07,99133.0,99132.0,0.78720326]
[1735173773344,6.3e-07,99133.0,99132.0,0.79020326]
[1735173773560,6.3e-07,99133.0,99132.0,0.78520326]
[1735173773779,6.3e-07,99133.0,99132.0,0.79020326]
[1735173774244,6e-07,99145.0,99144.0,0.488181]
[1735173774455,6.3e-07,99145.0,99144.0,0.51516732]
[1735173774644,6.3e-07,99145.0,99144.0,0.59216732]
[1735173775081,6.3e-07,99145.0,99144.0,0.61516732]
[1735173776247,0.00100063,99145.0,99144.0,0.62016732]
[1735173776498,0.00100063,99145.0,99144.0,0.62916732]
[1735173776741,6.3e-07,99145.0,99144.0,0.59216732]
[1735173776929,6.3e-07,99145.0,99144.0,0.60716732]
[1735173777181,6.3e-07,99145.0,99144.0,0.59816732]
[1735173777182,0.00100063,99145.0,99144.0,0.59816732]
[1735173777697,0.00100063,99145.0,99144.0,0.60716732]
[1735173778116,6.3e-07,99145.0,99144.0,0.62416732]
[1735173778289,0.311298,99195.0,99179.0,0.161323]
[1735173778525,0.08222604,99188.0,99179.0,0.161323]
[1735173778729,0.15,99186.0,99173.0,0.161334]
[1735173778931,0.10398632,99185.0,99173.0,0.161334]
[1735173781010,0.10398632,99185.0,99170.0,0.11734109]
[1735173781192,0.001,99186.0,99182.0,0.161319]
[1735173781400,0.001,99186.0,99182.0,0.322638]
[1735173782135,0.08222604,99188.0,99182.0,0.161319]
[1735173782339,0.001,99185.0,99182.0,0.161319]
[1735173782764,0.08222604,99188.0,99182.0,0.161319]
[1735173783564,0.08222604,99188.0,99178.0,0.161325]
[1735173785054,0.10398632,99187.0,99167.0,0.02024334]
[1735173785258,0.161331,99175.0,99151.0,0.16137]
[1735173785464,0.161346,99166.0,99152.0,0.161368]
[1735173785608,0.10524681,99165.0,99143.0,0.161381]
[1735173785820,0.16136,99157.0,99143.0,0.161381]
[1735173786023,0.161363,99155.0,99138.0,0.18174638]
[1735173786250,0.26534932,99155.0,99143.0,0.161382]
[1735173786824,0.10398632,99155.0,99143.0,0.322764]
[1735173787048,0.10398632,99155.0,99144.0,0.161381]
[1735173787249,0.10398632,99155.0,99146.0,0.161378]
[1735173789458,0.01014869,99162.0,99145.0,8.58e-05]
[1735173789459,0.26661195,99154.0,99145.0,8.58e-05]
[1735173790069,0.42797795,99154.0,99145.0,8.58e-05]
[1735173790751,0.26661195,99154.0,99145.0,8.58e-05]
[1735173792069,0.0755,99153.0,99145.0,8.58e-05]
[1735173792273,0.10398632,99152.0,99145.0,8.58e-05]
[1735173794677,0.10398632,99152.0,99145.0,0.0010858]
[1735173795122,0.10398632,99152.0,99145.0,0.0020858]
[1735173797102,0.0755,99164.0,99161.0,0.161353]
[1735173797312,0.29992319,99176.0,99161.0,0.161353]
[1735173797530,0.13465391,99170.0,99167.0,0.322686]
[1735173798799,0.000126,99173.0,99172.0,0.161335]
[1735173801371,0.000126,99173.0,99172.0,0.171335]
[1735173802590,0.000126,99173.0,99172.0,0.164335]
[1735173803246,0.000126,99173.0,99172.0,0.1716367]
[1735173803454,0.000126,99173.0,99172.0,0.1746367]
[1735173803856,0.000126,99173.0,99172.0,0.1806367]
[1735173804072,0.000126,99173.0,99172.0,0.1716367]
[1735173804475,0.000126,99173.0,99172.0,0.1796367]
[1735173804691,0.0001716,99185.0,99172.0,0.27862302]
[1735173804900,0.0001716,99207.0,99187.0,0.2]
[1735173805112,0.0001716,99207.0,99182.0,0.0824]
[1735173805113,0.00029759,99201.0,99200.0,0.16129]
[1735173807922,0.00029759,99201.0,99200.0,0.16229]
[1735173808133,0.00029759,99201.0,99200.0,0.16129]
[1735173808544,0.00129759,99201.0,99200.0,0.16129]
[1735173808983,0.00129759,99201.0,99200.0,0.16329]
[1735173810431,0.00029759,99201.0,99200.0,0.16129]
[1735173810815,0.00029759,99201.0,99200.0,0.16429]
[1735173811023,0.00029759,99201.0,99200.0,0.16229]
[1735173811434,0.00029759,99201.0,99200.0,0.16329]
[1735173812119,0.00029759,99201.0,99200.0,0.16129]
[1735173812345,0.00029759,99201.0,99200.0,0.16229]
[1735173813582,0.00029759,99201.0,99200.0,0.16129]
[1735173814010,0.00029759,99201.0,99200.0,0.16229]
[1735173814744,0.00029759,99201.0,99200.0,0.16129]
[1735173814953,0.00029759,99201.0,99200.0,0.16229]
[1735173815399,0.00029759,99201.0,99200.0,0.26627632]
[1735173816522,0.00029759,99201.0,99200.0,0.26527632]
[1735173816732,0.00029759,99201.0,99200.0,0.36627632]
[1735173816950,0.00029759,99201.0,99200.0,0.49127632]
[1735173817161,5.9e-07,99201.0,99200.0,0.49027632]
[1735173817608,5.9e-07,99201.0,99200.0,0.49927632]
[1735173817881,5.9e-07,99201.0,99200.0,0.49627632]
[1735173818082,5.9e-07,99201.0,99200.0,0.39627632]
[1735173818282,0.00100059,99201.0,99200.0,0.37027632]
[1735173819172,5.9e-07,99201.0,99200.0,0.50227632]
[1735173819520,0.00013219,99207.0,99206.0,0.36128]
[1735173819721,0.00013219,99207.0,99206.0,0.61526632]
[1735173820770,1.9e-07,99207.0,99206.0,0.63826632]
[1735173821176,1.9e-07,99207.0,99206.0,0.64226632]
[1735173821403,1.9e-07,99207.0,99206.0,0.65126632]
[1735173821810,0.0001716,99213.0,99212.0,0.2]
[1735173822013,0.0001716,99213.0,99212.0,0.30398632]
[1735173822747,0.0001716,99213.0,99212.0,0.46525632]
[1735173823417,0.0001716,99213.0,99212.0,0.36525632]
[1735173823625,0.0001716,99213.0,99212.0,0.46825632]
[1735173823853,0.0001716,99213.0,99212.0,0.47425632]
[1735173824289,6e-07,99213.0,99212.0,0.47425632]
[1735173827141,6e-07,99213.0,99212.0,0.17027]
[1735173827388,6e-07,99213.0,99212.0,0.19002716]
[1735173827670,6e-07,99213.0,99212.0,0.49401348]
[1735173827866,6e-07,99213.0,99212.0,0.49101348]
[1735173828083,6e-07,99213.0,99212.0,0.48801348]
[1735173828562,6e-07,99213.0,99212.0,0.49401348]
[1735173828811,6e-07,99213.0,99212.0,0.49101348]
[1735173829069,6e-07,99213.0,99212.0,0.49401348]
[1735173829568,6e-07,99213.0,99212.0,0.50413043]
[1735173829817,6e-07,99213.0,99212.0,0.39813043]
[1735173830061,6e-07,99213.0,99212.0,0.30014411]
[1735173830380,6e-07,99213.0,99212.0,0.20014411]
[1735173830887,6e-07,99213.0,99212.0,0.30014411]
[1735173831378,6e-07,99213.0,99212.0,0.29114411]
[1735173831633,6e-07,99213.0,99212.0,0.30014411]
[1735173832087,6e-07,99213.0,99212.0,0.29714411]
[1735173832503,6e-07,99213.0,99212.0,0.30014411]
[1735173833004,6e-07,99213.0,99212.0,0.50413043]
[1735173833495,6e-07,99213.0,99212.0,0.49813043]
[1735173833699,6e-07,99213.0,99212.0,0.50113043]
[1735173834040,6e-07,99213.0,99212.0,0.50413043]
[1735173834548,6e-07,99213.0,99212.0,0.50121613]
[1735173834941,6e-07,99213.0,99212.0,0.50421613]
[1735173835368,6e-07,99213.0,99212.0,0.50121613]
[1735173835492,6e-07,99213.0,99212.0,0.50421613]
[1735173835713,6e-07,99213.0,99212.0,0.49821613]
[1735173836767,6e-07,99213.0,99212.0,0.40121613]
[1735173837106,6e-07,99213.0,99212.0,0.40421613]
[1735173837725,6e-07,99213.0,99212.0,0.40121613]
[1735173838054,6e-07,99213.0,99212.0,0.40421613]
[1735173838478,6e-07,99213.0,99212.0,0.40121613]
[1735173838910,6e-07,99213.0,99212.0,0.39821613]
[1735173839127,6e-07,99213.0,99212.0,0.29422981]
[1735173839342,6e-07,99213.0,99212.0,0.30022981]
[1735173839558,6e-07,99213.0,99212.0,0.29422981]
[1735173839757,6e-07,99213.0,99212.0,0.30022981]
[1735173840475,6e-07,99213.0,99212.0,0.19722981]
[1735173840711,6e-07,99213.0,99212.0,0.0090857]
[1735173840712,0.18288692,99213.0,99212.0,0.0090857]
[1735173840964,0.22928692,99213.0,99212.0,0.0090857]
[1735173841682,0.22928692,99213.0,99212.0,0.0060857]
[1735173841924,0.23028692,99213.0,99212.0,8.57e-05]
[1735173842193,0.23028692,99213.0,99212.0,0.0040857]
[1735173842684,0.23028692,99213.0,99212.0,8.57e-05]
[1735173842931,0.23028692,99213.0,99212.0,0.0030857]
[1735173843169,0.23028692,99213.0,99212.0,8.57e-05]
[1735173843415,0.23028692,99213.0,99212.0,0.0020857]
[1735173843416,0.22928692,99213.0,99212.0,0.0020857]
[1735173843655,0.22928692,99213.0,99212.0,0.0010857]
[1735173843892,0.22928692,99213.0,99212.0,0.0020857]
[1735173844134,0.22928692,99213.0,99212.0,0.0010857]
[1735173844387,0.22928692,99213.0,99212.0,0.0020857]
[1735173845029,0.22928692,99213.0,99212.0,0.0010857]
[1735173845523,0.22928692,99213.0,99212.0,0.0020857]
[1735173849850,0.22928692,99213.0,99212.0,0.0010857]
[1735173850362,0.22928692,99213.0,99212.0,0.0020857]
[1735173850769,0.22928692,99213.0,99212.0,0.0010857]
[1735173851149,0.22928692,99213.0,99212.0,8.57e-05]
[1735173851455,0.22928692,99213.0,99212.0,0.0010857]
[1735173854824,0.22928692,99213.0,99212.0,8.57e-05]
[1735173855067,0.18288692,99213.0,99212.0,8.57e-05]
[1735173855324,0.10398692,99213.0,99212.0,8.57e-05]
[1735173856290,6e-07,99213.0,99212.0,8.57e-05]
[1735173857315,6e-07,99213.0,99212.0,0.1775857]
[1735173857527,6e-07,99213.0,99212.0,0.2268857]
[1735173858162,6e-07,99213.0,99212.0,0.43087202]
[1735173858787,6e-07,99213.0,99212.0,0.43587202]
[1735173859445,6e-07,99213.0,99212.0,0.43387202]
[1735173859642,6e-07,99213.0,99212.0,0.45395837]
[1735173859868,6e-07,99213.0,99212.0,0.45695837]
[1735173860071,6e-07,99213.0,99212.0,0.45995837]
[1735173863136,6e-07,99213.0,99212.0,0.02917205]
[1735173863344,6e-07,99213.0,99212.0,0.0090857]
[1735173863683,0.10398692,99213.0,99212.0,0.0090857]
[1735173863888,0.1052469,99213.0,99212.0,0.0060857]
[1735173864062,0.1052469,99213.0,99212.0,0.0090857]
[1735173864265,0.1052469,99213.0,99212.0,0.0030857]
[1735173865126,0.1052469,99213.0,99212.0,0.0050857]
[1735173865290,0.1052469,99213.0,99212.0,0.0030857]
[1735173865489,0.1052469,99213.0,99212.0,8.57e-05]
[1735173865736,0.1052469,99213.0,99212.0,0.0030857]
[1735173866661,0.1052469,99213.0,99212.0,0.0040857]
[1735173867081,0.1052469,99213.0,99212.0,0.0030857]
[1735173867335,0.1052469,99213.0,99212.0,0.0010857]
[1735173867551,0.1052469,99213.0,99212.0,0.0030857]
[1735173868089,0.1052469,99213.0,99212.0,0.0060857]
[1735173869312,6e-07,99213.0,99212.0,0.0060857]
[1735173870687,6e-07,99213.0,99212.0,0.0050857]
[1735173870927,6e-07,99213.0,99212.0,8.57e-05]
[1735173871134,6e-07,99213.0,99212.0,0.0030857]
[1735173871343,6e-07,99213.0,99212.0,8.57e-05]
[1735173871763,6e-07,99213.0,99212.0,0.0020857]
[1735173871976,6e-07,99213.0,99212.0,0.0010857]
[1735173872188,6e-07,99213.0,99212.0,0.0050857]
[1735173872402,6e-07,99213.0,99212.0,0.01519503]
[1735173872625,0.1001716,99217.0,99216.0,0.0813]
[1735173872626,0.07936352,99217.0,99216.0,0.0813]
[1735173872839,0.07936352,99217.0,99216.0,0.1813]
[1735173873044,0.07936352,99217.0,99215.0,0.161265]
[1735173873261,0.07936352,99217.0,99215.0,0.261265]
[1735173873470,0.07936352,99217.0,99216.0,0.12057677]
[1735173874549,0.07936352,99217.0,99216.0,0.02057677]
[1735173874797,0.07936352,99217.0,99215.0,0.161265]
[1735173874997,0.07936352,99217.0,99216.0,0.105]
[1735173875383,0.07936352,99217.0,99216.0,0.005]
[1735173875580,0.07936352,99217.0,99216.0,0.105]
[1735173875790,0.07936352,99217.0,99216.0,0.005]
[1735173876212,0.07936352,99217.0,99216.0,0.007]
[1735173876785,0.07936352,99217.0,99216.0,0.107]
[1735173876992,0.07936352,99217.0,99216.0,0.007]
[1735173877191,0.07936352,99217.0,99216.0,0.107]
[1735173877572,0.07936352,99217.0,99216.0,0.007]
[1735173878923,0.07936352,99217.0,99216.0,0.107]
[1735173879337,0.07936352,99217.0,99216.0,0.007]
[1735173879525,0.07936352,99217.0,99216.0,0.107]
[1735173880090,0.07953512,99217.0,99216.0,0.107]
[1735173880568,0.07953512,99217.0,99216.0,0.007]
[1735173882811,0.16073512,99217.0,99216.0,0.007]
[1735173883702,0.16073512,99217.0,99216.0,0.005]
[1735173884131,0.16073512,99217.0,99216.0,0.007]
[1735173884338,0.16073512,99217.0,99216.0,0.002]
[1735173884751,0.16199504,99217.0,99216.0,0.005]
[1735173884956,0.16199504,99217.0,99216.0,0.002]
[1735173885289,0.16199504,99217.0,99212.0,8.57e-05]
[1735173885510,0.16252492,99216.0,99212.0,8.57e-05]
[1735173886149,0.00125992,99216.0,99212.0,8.57e-05]
[1735173887375,0.00125992,99216.0,99212.0,0.0010857]
[1735173887376,0.26525132,99215.0,99212.0,0.0010857]
[1735173887579,0.161269,99213.0,99212.0,0.0010857]
[1735173887781,0.26651532,99213.0,99212.0,0.0010857]
[1735173887987,0.26525532,99213.0,99212.0,8.57e-05]
[1735173889538,0.26525532,99213.0,99212.0,0.0010857]
[1735173889934,0.26525532,99213.0,99212.0,0.0030857]
[1735173890104,0.39395532,99213.0,99212.0,0.0030857]
[1735173891147,0.39395532,99213.0,99212.0,0.0010857]
[1735173891387,0.39395532,99213.0,99212.0,0.0020857]
[1735173891607,0.39395532,99213.0,99212.0,0.0030857]
[1735173892617,0.39395532,99213.0,99212.0,0.0020857]
[1735173892820,0.41795532,99213.0,99212.0,0.0020857]
[1735173893024,0.41795532,99213.0,99212.0,8.57e-05]
[1735173893225,0.41695532,99213.0,99212.0,8.57e-05]
[1735173893912,0.39395532,99213.0,99212.0,8.57e-05]
[1735173894165,0.23268632,99213.0,99212.0,8.57e-05]
[1735173894576,0.18278632,99213.0,99212.0,8.57e-05]
[1735173894782,0.10498632,99213.0,99212.0,8.57e-05]
[1735173895393,0.10398632,99213.0,99212.0,8.57e-05]
[1735173895603,0.10598632,99213.0,99212.0,8.57e-05]
[1735173895839,0.10724633,99213.0,99212.0,8.57e-05]
[1735173896031,0.10524633,99213.0,99212.0,8.57e-05]
[1735173896521,0.10524633,99213.0,99212.0,0.0010857]
[1735173896940,0.00126001,99216.0,99212.0,0.0010857]
[1735173897142,0.10398632,99216.0,99212.0,0.0010857]
[1735173897376,0.10398632,99216.0,99212.0,0.0040857]
[1735173897580,0.07953512,99217.0,99213.0,0.161269]
[1735173899385,0.07953512,99217.0,99213.0,0.322538]
[1735173899791,0.07953512,99217.0,99213.0,0.323538]
[1735173900224,0.07953512,99217.0,99213.0,0.001]
[1735173900436,0.10524617,99216.0,99213.0,0.001]
[1735173900639,0.07953512,99217.0,99213.0,0.161269]
[1735173900851,0.07953512,99217.0,99213.0,0.164269]
[1735173901301,0.07953512,99217.0,99213.0,0.165269]
[1735173902252,0.07953512,99217.0,99213.0,0.326538]
[1735173907390,0.07953512,99217.0,99213.0,0.372638]
[1735173907632,0.07953512,99217.0,99216.0,0.1788]
[1735173908824,0.08053512,99217.0,99216.0,0.1788]
[1735173909017,0.08053512,99217.0,99216.0,0.19927188]
[1735173909254,0.08053512,99217.0,99216.0,0.20027188]
[1735173909818,0.08053512,99217.0,99216.0,0.20227188]
[1735173910051,0.07953512,99217.0,99216.0,0.20227188]
[1735173910266,0.07953512,99217.0,99216.0,0.19927188]
[1735173910495,0.07953512,99217.0,99216.0,0.12547188]
[1735173910732,0.07953512,99217.0,99216.0,0.12047188]
[1735173911193,0.07953512,99217.0,99215.0,0.161265]
[1735173911444,0.07953512,99217.0,99216.0,0.002]
[1735173912127,0.07953512,99217.0,99216.0,0.005]
[1735173912353,0.07953512,99217.0,99213.0,0.322538]
[1735173912581,0.07953512,99217.0,99216.0,0.004]
[1735173912801,0.07953512,99217.0,99213.0,0.322538]
[1735173913254,0.07953512,99217.0,99216.0,0.102]
[1735173913488,0.07953512,99217.0,99216.0,0.1]
[1735173913703,0.07953512,99217.0,99216.0,0.261264]
[1735173913950,0.07953512,99217.0,99216.0,0.265264]
[1735173915126,0.07953512,99217.0,99216.0,0.261264]
[1735173915300,0.07953512,99217.0,99216.0,0.265264]
[1735173915495,0.07953512,99217.0,99216.0,0.261264]
[1735173915899,0.07953512,99217.0,99216.0,0.264264]
[1735173916100,0.07953512,99217.0,99216.0,0.36825032]
[1735173916514,0.07953512,99217.0,99216.0,0.36925032]
[1735173916741,0.07953512,99217.0,99216.0,0.36625032]
[1735173916957,0.07953512,99217.0,99216.0,0.36925032]
[1735173917379,0.07953512,99217.0,99216.0,0.52025032]
[1735173917800,0.07953512,99217.0,99216.0,0.51925032]
[1735173918200,0.07953512,99217.0,99216.0,0.52125032]
[1735173918844,0.07953512,99217.0,99216.0,0.51725032]
[1735173919029,0.07953512,99217.0,99216.0,0.52125032]
[1735173919219,0.07953512,99217.0,99216.0,0.51725032]
[1735173919625,0.07953512,99217.0,99216.0,0.52025032]
[1735173919833,0.0001,99249.0,99239.0,0.1]
[1735173920007,0.17935401,99260.0,99254.0,0.261202]
[1735173920211,0.07030441,99255.0,99254.0,0.261202]
[1735173920424,0.04524502,99255.0,99254.0,0.36518832]
[1735173920603,0.00052061,99255.0,99254.0,0.36518832]
[1735173920975,0.00052061,99255.0,99254.0,0.66308832]
[1735173921181,0.01476441,99259.0,99254.0,0.66308832]
[1735173921182,0.00052061,99259.0,99258.0,0.1]
[1735173921391,0.00067666,99259.0,99258.0,0.20398632]
[1735173921856,0.00015605,99259.0,99258.0,0.20398632]
[1735173922457,0.00015605,99259.0,99258.0,0.1]
[1735173922663,0.00015605,99259.0,99258.0,0.104]
[1735173922870,0.00015605,99259.0,99258.0,0.1]
[1735173923285,0.00015605,99259.0,99258.0,0.009]
[1735173923493,0.00015605,99259.0,99258.0,0.105]
[1735173923693,0.00015605,99259.0,99258.0,0.014]
[1735173924054,0.00015605,99259.0,99258.0,0.109]
[1735173924276,0.00015605,99259.0,99258.0,0.113]
[1735173924479,0.00015605,99259.0,99258.0,0.21698632]
[1735173925108,0.00015605,99259.0,99258.0,0.20798632]
[1735173925484,0.00015605,99259.0,99258.0,5.36698632]
[1735173925711,0.00015605,99259.0,99258.0,5.35798632]
[1735173925893,0.00015605,99259.0,99258.0,5.54988632]
[1735173926443,0.00032765,99259.0,99258.0,5.59378632]
[1735173926646,0.00032765,99259.0,99258.0,5.59678632]
[1735173927303,0.00032765,99259.0,99258.0,5.49378632]
[1735173927434,0.00032765,99259.0,99258.0,5.49778632]
[1735173927858,0.00032765,99259.0,99258.0,5.49378632]
[1735173928059,0.00032765,99259.0,99258.0,5.48478632]
[1735173928260,0.00132765,99259.0,99258.0,5.49078632]
[1735173928564,0.00132765,99259.0,99258.0,5.59078632]
[1735173928965,0.00132765,99259.0,99258.0,5.59978632]
[1735173929233,0.00132765,99259.0,99258.0,5.59078632]
[1735173929457,0.00132765,99259.0,99258.0,6.13158632]
[1735173929627,0.00032765,99259.0,99258.0,6.13458632]
[1735173929771,0.00032765,99259.0,99258.0,6.13858632]
[1735173930198,0.00032765,99259.0,99258.0,6.13458632]
[1735173930639,0.00132765,99259.0,99258.0,6.14058632]
[1735173931134,0.00032765,99259.0,99258.0,6.13458632]
[1735173931375,0.00032765,99259.0,99258.0,6.12558632]
[1735173931623,0.00132765,99259.0,99258.0,6.14158632]
[1735173932289,0.0002,99289.0,99258.0,6.14158632]
[1735173932290,0.0002,99289.0,99284.0,0.1]
[1735173932495,0.0002,99289.0,99284.0,0.35398632]
[1735173932900,0.0002,99289.0,99284.0,0.51513932]
[1735173933337,0.0002,99289.0,99284.0,1.38673932]
[1735173933544,6e-07,99285.0,99284.0,1.38873932]
[1735173934155,6e-07,99285.0,99284.0,1.38673932]
[1735173934358,6e-07,99285.0,99284.0,1.40301291]
[1735173934819,0.0002,99289.0,99288.0,0.1]
[1735173935031,0.00035596,99289.0,99288.0,0.45398632]
[1735173935223,9.6e-07,99289.0,99288.0,0.45398632]
[1735173936063,9.6e-07,99289.0,99288.0,0.99478632]
[1735173936217,9.6e-07,99289.0,99288.0,1.00378632]
[1735173936619,9.6e-07,99289.0,99288.0,0.99478632]
[1735173936857,9.6e-07,99289.0,99288.0,1.01278632]
[1735173937299,9.6e-07,99289.0,99288.0,1.01155403]
[1735173937836,9.6e-07,99289.0,99288.0,1.02055403]
[1735173938048,9.6e-07,99289.0,99288.0,1.09945403]
[1735173938869,6.6e-07,99289.0,99288.0,1.09945403]
[1735173939094,6.6e-07,99289.0,99288.0,0.92055403]
[1735173939528,6.6e-07,99289.0,99288.0,6.02055403]
[1735173940151,6.6e-07,99289.0,99288.0,6.01155403]
[1735173940573,6.6e-07,99289.0,99288.0,6.01955403]
[1735173940993,6.6e-07,99289.0,99288.0,6.01155403]
[1735173941167,6.6e-07,99289.0,99288.0,6.11055403]
[1735173941373,6.6e-07,99289.0,99288.0,5.56975403]
[1735173941582,6.6e-07,99289.0,99288.0,5.57075403]
[1735173941784,6.6e-07,99289.0,99288.0,5.56175403]
[1735173942023,6.6e-07,99289.0,99288.0,5.56975403]
[1735173942235,6e-07,99301.0,99300.0,0.511127]
[1735173942450,5.256e-05,99301.0,99300.0,0.61511332]
[1735173943022,5.6e-07,99301.0,99300.0,0.71511332]
[1735173943225,5.6e-07,99301.0,99300.0,0.79401332]
[1735173944659,0.0002,99309.0,99306.0,0.261118]
[1735173944660,1.6e-07,99307.0,99306.0,0.261118]
[1735173945015,1.6e-07,99307.0,99306.0,0.51510432]
[1735173945548,0.0002,99329.0,99328.0,0.1]
[1735173945760,0.0002,99329.0,99328.0,0.36506832]
[1735173947053,0.0002,99329.0,99328.0,5.37509345]
[1735173948099,0.0002,99329.0,99328.0,5.53509345]
[1735173948304,0.0002,99329.0,99328.0,5.52809345]
[1735173948526,0.0002,99329.0,99328.0,5.52509345]
[1735173948730,0.0002,99329.0,99328.0,5.53409345]
[1735173948935,0.0813,99341.0,99337.0,0.1]
[1735173949148,0.08145595,99341.0,99340.0,0.161063]
[1735173949358,0.08145595,99341.0,99340.0,0.51504932]
[1735173949359,0.00015595,99341.0,99340.0,0.51504932]
[1735173949596,0.0001714,99355.0,99348.0,0.26105]
[1735173951499,0.0001714,99355.0,99348.0,0.26505]
[1735173951670,0.0001714,99355.0,99348.0,0.27405]
[1735173952143,0.0001714,99355.0,99348.0,0.37803632]
[1735173952743,0.0001714,99355.0,99348.0,0.38826299]
[1735173953377,0.0001714,99355.0,99348.0,0.63826299]
[1735173953779,0.0001714,99359.0,99358.0,0.1]
[1735173953984,0.0001714,99359.0,99358.0,0.20398632]
[1735173955219,0.0001714,99359.0,99358.0,0.20998632]
[1735173955373,0.0001714,99359.0,99358.0,0.36098632]
[1735173955587,0.0001714,99359.0,99358.0,0.37081578]
[1735173955980,0.0001714,99359.0,99358.0,0.36481578]
[1735173956181,0.00069105,99359.0,99358.0,0.37381578]
[1735173956586,0.00069105,99359.0,99358.0,0.26882946]
[1735173956799,0.00069105,99359.0,99358.0,0.27282946]
[1735173957010,0.00069105,99359.0,99358.0,0.02282946]
[1735173957600,0.00069105,99359.0,99358.0,0.27282946]
[1735173962772,0.00069105,99359.0,99358.0,5.27282946]
[1735173963783,0.08169105,99359.0,99358.0,5.013]
[1735173964012,0.08169105,99359.0,99358.0,5.113]
[1735173964214,0.00069105,99359.0,99358.0,5.22718677]
[1735173964620,0.0002,99369.0,99368.0,0.261017]
[1735173964830,0.0002857,99389.0,99388.0,0.160985]
[1735173965038,0.0002857,99389.0,99388.0,0.260985]
[1735173965039,0.0004415,99389.0,99388.0,0.260985]
[1735173965242,0.0004415,99389.0,99388.0,0.51497132]
[1735173967235,0.0004415,99389.0,99388.0,0.52520293]
[1735173967647,0.0004415,99389.0,99388.0,0.54822981]
[1735173969479,0.0004415,99389.0,99388.0,0.34424349]
[1735173969683,0.0004415,99389.0,99388.0,0.313985]
[1735173969895,0.0004415,99389.0,99388.0,0.163985]
[1735173971058,0.1295415,99389.0,99388.0,0.003]
[1735173971860,0.23352782,99389.0,99388.0,0.003]
[1735173972684,0.25652782,99389.0,99388.0,0.003]
[1735173973097,0.25652782,99389.0,99388.0,5.003]
[1735173973310,0.25652782,99389.0,99388.0,4.8749]
[1735173973744,0.25652782,99389.0,99388.0,4.8769]
[1735173973902,0.25652782,99389.0,99388.0,4.8749]
[1735173974105,0.23352782,99389.0,99388.0,4.8749]
[1735173974354,0.23352782,99389.0,99388.0,4.8769]
[1735173975213,0.23352782,99389.0,99388.0,4.8749]
[1735173975417,0.25652782,99389.0,99388.0,4.8769]
[1735173976337,0.1295415,99389.0,99388.0,4.8769]
[1735173976550,0.1295415,99389.0,99388.0,4.8749]
[1735173976750,0.25652782,99389.0,99388.0,4.8759]
[1735173977243,0.25652782,99389.0,99388.0,4.8749]
[1735173977452,0.25652782,99389.0,99388.0,4.8759]
[1735173977860,0.25652782,99389.0,99388.0,4.8749]
[1735173978017,0.25652782,99389.0,99388.0,4.8769]
[1735173978384,0.25652782,99389.0,99388.0,4.8749]
[1735173980403,0.25652782,99389.0,99388.0,4.8779]
[1735173980800,0.26699762,99389.0,99388.0,4.8749]
[1735173981209,0.36699762,99389.0,99388.0,4.8749]